bitfinex-derivatives/quotes_BTCF0:USTF0_20251118
["timestamp","ask_amount","ask_price","bid_price","bid_amount"]
[1763488141591,0.00016085,93267.0,93266.0,0.16276]
[1763488141792,0.107277,93276.0,93275.0,0.1513375]
[1763488141992,0.10920247,93280.0,93279.0,0.04406]
[1763488142394,0.1520998,93273.0,93272.0,0.3608]
[1763488143396,0.04482,93271.0,93270.0,0.00100003]
[1763488144000,0.04482,93271.0,93270.0,0.02400003]
[1763488144200,0.03506,93276.0,93275.0,0.04406]
[1763488144399,0.05815,93276.0,93275.0,0.04406]
[1763488144596,0.00193067,93280.0,93279.0,0.04406]
[1763488144798,0.02173,93286.0,93285.0,0.1513243]
[1763488144992,0.1289957,93286.0,93285.0,0.04406]
[1763488145196,0.1520857,93286.0,93285.0,0.04406]
[1763488146506,0.04482,93286.0,93285.0,0.04406]
[1763488146708,0.02173,93286.0,93285.0,0.04406]
[1763488147005,0.00193067,93290.0,93283.0,0.1072675]
[1763488147006,0.00193067,93290.0,93289.0,0.04406]
[1763488147208,0.00193067,93290.0,93289.0,0.1513214]
[1763488147401,0.1072614,93289.0,93288.0,0.3608]
[1763488147601,0.1520906,93281.0,93280.0,0.3838]
[1763488147904,0.1289946,93287.0,93286.0,0.023]
[1763488148208,0.1520846,93287.0,93286.0,0.023]
[1763488148404,0.00193067,93290.0,93289.0,0.04406]
[1763488148799,0.107256,93294.0,93293.0,0.04406]
[1763488149508,0.152076,93294.0,93293.0,0.04406]
[1763488149710,0.1520791,93291.0,93290.0,0.00100003]
[1763488150500,0.1520791,93291.0,93290.0,0.02400003]
[1763488150899,0.1520791,93291.0,93290.0,0.00100003]
[1763488151899,0.152086,93285.0,93284.0,0.00016085]
[1763488155404,0.152086,93285.0,93284.0,0.04422085]
[1763488155801,0.04482,93285.0,93284.0,0.04422085]
[1763488156000,0.1520849,93286.0,93285.0,0.151326]
[1763488156200,0.1072623,93289.0,93288.0,0.04406]
[1763488156400,0.1289923,93289.0,93288.0,0.04406]
[1763488156608,0.1520823,93289.0,93288.0,0.023]
[1763488157003,0.00193067,93290.0,93286.0,0.3608]
[1763488157004,0.00193067,93290.0,93289.0,0.1513214]
[1763488157211,0.05882839,93320.0,93289.0,0.1513214]
[1763488157212,0.05815,93312.0,93311.0,0.1512961]
[1763488157508,0.27321,93324.0,93311.0,0.40486]
[1763488157707,0.10915667,93320.0,93311.0,0.3608]
[1763488157910,0.04482,93313.0,93312.0,0.151295]
[1763488158204,0.04482,93313.0,93312.0,0.04406]
[1763488158411,0.04482,93313.0,93312.0,0.151295]
[1763488158709,0.165385,93312.0,93311.0,0.3608]
[1763488158910,0.05815,93312.0,93311.0,0.3608]
[1763488159095,0.165385,93312.0,93311.0,0.3838]
[1763488159301,0.165385,93312.0,93311.0,0.40486]
[1763488159501,0.1289637,93314.0,93313.0,0.04406]
[1763488159702,0.1072297,93317.0,93316.0,0.04406]
[1763488159902,0.1520497,93317.0,93316.0,0.04406]
[1763488160203,0.107235,93312.0,93311.0,0.3608]
[1763488160402,0.164405,93312.0,93311.0,0.3608]
[1763488161206,0.04339,93311.0,93310.0,0.00100003]
[1763488161510,0.04339,93309.0,93308.0,0.00016075]
[1763488161908,0.04339,93294.0,93293.0,0.3608]
[1763488162105,0.04339,93294.0,93283.0,0.62064]
[1763488162106,0.04339,93284.0,93283.0,0.64382]
[1763488162414,0.04339,93284.0,93283.0,0.66494]
[1763488162606,0.02214,93291.0,93290.0,0.0443]
[1763488162804,0.02214,93291.0,93290.0,0.04530003]
[1763488164309,0.04339,93291.0,93290.0,0.00100003]
[1763488165516,0.04339,93284.0,93283.0,0.3608]
[1763488165814,0.01378,93288.0,93281.0,0.00016075]
[1763488165815,0.04339,93282.0,93281.0,0.04446075]
[1763488166014,0.02214,93288.0,93287.0,0.0443]
[1763488166207,0.02214,93288.0,93287.0,0.4051]
[1763488166607,0.04339,93288.0,93287.0,0.4051]
[1763488167313,0.00193067,93290.0,93289.0,0.04415]
[1763488167514,0.00016066,93300.0,93290.0,0.00100003]
[1763488167713,0.00209133,93300.0,93295.0,0.3608]
[1763488167914,0.02333,93296.0,93295.0,0.4911645]
[1763488168110,0.04553,93296.0,93295.0,0.38391]
[1763488168508,0.04553,93296.0,93295.0,0.4911645]
[1763488169211,0.1658391,93291.0,93290.0,0.00100003]
[1763488169415,0.05858,93291.0,93290.0,0.00100003]
[1763488170709,0.05858,93291.0,93290.0,0.04515003]
[1763488170905,0.04553,93291.0,93290.0,0.04515003]
[1763488171109,0.05858,93291.0,93290.0,0.02411003]
[1763488171316,0.05858,93291.0,93290.0,0.00100003]
[1763488172415,0.41938,93291.0,93290.0,0.00100003]
[1763488172713,0.1528259,93259.0,93258.0,0.3608]
[1763488172911,0.04553,93251.0,93250.0,0.4681055]
[1763488173111,0.04553,93251.0,93250.0,0.40595003]
[1763488173312,0.02333,93251.0,93250.0,0.40595003]
[1763488173510,0.3608,93268.0,93250.0,0.36180003]
[1763488173712,0.00193067,93270.0,93269.0,0.04415]
[1763488174816,0.04746067,93270.0,93269.0,0.04415]
[1763488175406,0.02526067,93270.0,93269.0,0.40495]
[1763488175721,0.00193067,93270.0,93269.0,0.40495]
[1763488176018,0.00016084,93279.0,93278.0,0.02311]
[1763488176319,0.15296374,93279.0,93278.0,0.02311]
[1763488176516,0.04553,93273.0,93272.0,0.02311]
[1763488177514,0.04553,93273.0,93272.0,0.04415]
[1763488177720,0.02349084,93279.0,93278.0,0.02311]
[1763488178013,0.02349084,93279.0,93278.0,0.40495]
[1763488178515,0.00016084,93279.0,93278.0,0.40495]
[1763488179422,0.1527822,93298.0,93297.0,0.1072522]
[1763488179608,0.1527822,93298.0,93280.0,0.10837173]
[1763488179609,0.1072548,93295.0,93294.0,0.1514055]
[1763488179811,0.1305848,93295.0,93294.0,0.1514055]
[1763488180011,0.02333,93295.0,93294.0,0.1514055]
[1763488180612,0.04553,93295.0,93294.0,0.1514055]
[1763488181513,0.04553,93295.0,93294.0,0.04415]
[1763488182207,0.04553,93295.0,93293.0,0.1303661]
[1763488182208,0.04553,93294.0,93293.0,0.1303661]
[1763488182517,0.05858,93291.0,93290.0,0.46916023]
[1763488183610,0.05858,93291.0,93290.0,0.51331023]
[1763488183815,0.04553,93291.0,93290.0,0.51331023]
[1763488184316,0.5266294,93300.0,93299.0,0.1072499]
[1763488184519,0.5266294,93300.0,93293.0,0.1072563]
[1763488184520,0.1294592,93294.0,93293.0,0.1072563]
[1763488184824,0.1527892,93294.0,93293.0,0.1514063]
[1763488185018,0.17868168,93294.0,93293.0,0.1514063]
[1763488185208,0.17868168,93294.0,93293.0,0.04415]
[1763488185408,0.07142248,93294.0,93293.0,0.04415]
[1763488185722,0.07142248,93294.0,93293.0,0.04515]
[1763488190021,0.07142248,93294.0,93293.0,0.001]
[1763488190417,0.07142248,93294.0,93293.0,0.02411]
[1763488190918,0.07142248,93294.0,93293.0,0.04515]
[1763488191318,0.07142248,93294.0,93293.0,0.04415]
[1763488192024,0.04553,93291.0,93290.0,0.36189993]
[1763488192222,0.07142248,93291.0,93290.0,0.36189993]
[1763488192423,0.07142248,93291.0,93290.0,0.00109993]
[1763488194916,0.07142248,93291.0,93290.0,0.04524993]
[1763488195229,0.04553,93291.0,93290.0,0.04524993]
[1763488197321,0.02333,93291.0,93290.0,0.04524993]
[1763488199216,0.05617,93300.0,93299.0,0.1530701]
[1763488199413,0.05617,93300.0,93296.0,0.4680529]
[1763488199414,0.08393662,93300.0,93296.0,0.4680529]
[1763488199619,0.04312,93297.0,93296.0,0.4905429]
[1763488199820,0.04312,93297.0,93296.0,0.5138729]
[1763488200221,0.04312,93297.0,93296.0,0.40662]
[1763488200626,0.04312,93297.0,93296.0,0.3608]
[1763488200829,0.1503816,93289.0,93288.0,0.3608]
[1763488201128,0.1503816,93289.0,93288.0,0.40662]
[1763488201324,0.1503816,93289.0,93288.0,0.3608]
[1763488201725,0.150385,93286.0,93285.0,0.00016084]
[1763488201928,0.1072731,93279.0,93278.0,0.3608]
[1763488202120,0.1072731,93279.0,93265.0,0.25976]
[1763488202121,0.1504126,93262.0,93261.0,0.12276266]
[1763488202322,0.01369,93267.0,93256.0,0.3608]
[1763488202323,0.1504184,93257.0,93256.0,0.3608]
[1763488202628,0.1504253,93251.0,93250.0,0.00109993]
[1763488203017,0.04312,93251.0,93250.0,0.02358993]
[1763488203224,0.04312,93251.0,93250.0,0.00109993]
[1763488203619,0.04312,93251.0,93250.0,0.02358993]
[1763488203823,0.04312,93251.0,93250.0,0.00109993]
[1763488204418,0.04312,93251.0,93228.0,0.38708]
[1763488204419,0.04312,93229.0,93228.0,0.38708]
[1763488204830,0.04212,93229.0,93228.0,0.40957]
[1763488205127,0.04212,93229.0,93228.0,0.4329]
[1763488205324,0.00183077,93230.0,93229.0,0.1531506]
[1763488205520,0.05681,93236.0,93235.0,0.1531437]
[1763488205734,0.00016084,93239.0,93238.0,0.04582]
[1763488205931,0.00016084,93239.0,93238.0,0.40662]
[1763488207828,0.00016084,93239.0,93238.0,0.40762]
[1763488208233,0.04328084,93239.0,93238.0,0.40662]
[1763488208434,0.00016084,93239.0,93238.0,0.40762]
[1763488208823,0.04328084,93239.0,93238.0,0.40762]
[1763488209030,0.04328084,93239.0,93238.0,0.38429]
[1763488209238,0.04328084,93239.0,93238.0,0.3618]
[1763488209940,0.04328084,93239.0,93238.0,0.5149401]
[1763488210437,0.04328084,93239.0,93238.0,0.5139401]
[1763488210635,0.04328084,93239.0,93238.0,0.5149401]
[1763488211135,0.00016084,93239.0,93238.0,0.5149401]
[1763488212427,0.40392,93256.0,93255.0,0.1531206]
[1763488212629,0.43032766,93256.0,93255.0,0.1531206]
[1763488213339,0.04312,93256.0,93255.0,0.1531206]
[1763488214237,0.00183077,93260.0,93259.0,0.153116]
[1763488214422,0.03680077,93260.0,93251.0,0.3608]
[1763488214624,0.04312,93252.0,93251.0,0.40662]
[1763488214833,0.1504252,93251.0,93250.0,0.00109993]
[1763488215428,0.1504252,93251.0,93250.0,0.02358993]
[1763488215731,0.1504252,93251.0,93250.0,0.00109993]
[1763488217133,0.1504252,93251.0,93250.0,0.00209993]
[1763488218537,0.04312,93251.0,93250.0,0.04791993]
[1763488218742,0.02184,93251.0,93250.0,0.04791993]
[1763488219040,0.02184,93251.0,93250.0,0.00209993]
[1763488219041,0.04312,93251.0,93250.0,0.00209993]
[1763488222338,0.02184,93251.0,93250.0,0.15458623]
[1763488222526,0.3608,93255.0,93254.0,0.1530917]
[1763488222733,0.05607,93260.0,93259.0,0.0231]
[1763488222931,0.1496806,93255.0,93254.0,0.40659]
[1763488223240,0.04238,93254.0,93253.0,0.0438924]
[1763488223848,0.04238,93251.0,93250.0,0.00109993]
[1763488225336,0.1626698,93247.0,93246.0,0.00016084]
[1763488226531,0.1626698,93247.0,93246.0,0.00116084]
[1763488227240,0.1891103,93247.0,93246.0,0.00116084]
[1763488229539,0.0818005,93247.0,93246.0,0.00116084]
[1763488229736,0.08179958,93247.0,93246.0,0.00116084]
[1763488232244,0.08179958,93247.0,93246.0,0.10847184]
[1763488232438,0.08179958,93247.0,93246.0,0.00116084]
[1763488232832,0.1517982,93231.0,93229.0,0.07694266]
[1763488233137,0.1073248,93234.0,93221.0,0.1073394]
[1763488233138,0.1518005,93229.0,93221.0,0.1073394]
[1763488233343,0.17816595,93229.0,93221.0,0.1073394]
[1763488233640,0.1518005,93229.0,93220.0,0.00109993]
[1763488234146,0.04447,93229.0,93227.0,0.1073324]
[1763488234538,0.01527077,93230.0,93229.0,0.1073305]
[1763488234840,0.05974077,93230.0,93229.0,0.1073305]
[1763488235434,0.42054077,93230.0,93229.0,0.001]
[1763488236143,0.42054077,93230.0,93228.0,0.02628]
[1763488236144,0.04447,93229.0,93228.0,0.02628]
[1763488236837,0.1518097,93221.0,93219.0,0.00016084]
[1763488237038,0.04447,93220.0,93219.0,0.00016084]
[1763488237235,0.04630077,93220.0,93219.0,0.00016084]
[1763488237547,0.1518189,93213.0,93203.0,0.1073601]
[1763488237749,0.1518259,93207.0,93195.0,0.2598]
[1763488238039,0.1518259,93207.0,93204.0,0.1073584]
[1763488238236,0.04447,93207.0,93204.0,0.1073584]
[1763488238547,0.04447,93207.0,93189.0,0.07694266]
[1763488238548,0.04447,93190.0,93189.0,0.1293066]
[1763488238743,0.04347,93189.0,93188.0,0.3608]
[1763488239341,0.04447,93182.0,93181.0,0.3671858]
[1763488239538,0.04347,93182.0,93181.0,0.4117758]
[1763488240047,0.04147,93182.0,93181.0,0.4117758]
[1763488240953,0.1488547,93182.0,93181.0,0.2598]
[1763488241140,0.04447,93181.0,93180.0,0.10864786]
[1763488241449,0.04455086,93190.0,93189.0,0.1519666]
[1763488241741,0.04455086,93190.0,93180.0,0.36206086]
[1763488241742,0.02196,93181.0,93180.0,0.15213793]
[1763488241938,0.04447,93181.0,93180.0,0.15323786]
[1763488242442,0.02196,93181.0,93180.0,0.15323786]
[1763488242643,0.3608,93185.0,93184.0,0.1519724]
[1763488243238,0.38276,93185.0,93184.0,0.1519724]
[1763488243750,0.3608,93185.0,93184.0,0.1519724]
[1763488244433,0.38276,93185.0,93184.0,0.1519724]
[1763488244636,0.3608,93185.0,93184.0,0.1519724]
[1763488244841,0.02204086,93190.0,93189.0,0.04459]
[1763488245035,0.04638163,93190.0,93189.0,0.04459]
[1763488245236,0.04638163,93190.0,93189.0,0.02193]
[1763488245436,0.04638163,93190.0,93180.0,0.00016093]
[1763488245437,0.151853,93184.0,93183.0,0.02193]
[1763488245840,0.1652958,93181.0,93180.0,0.00126086]
[1763488246242,0.1652958,93181.0,93180.0,0.04585086]
[1763488246637,0.1652958,93181.0,93180.0,0.00016093]
[1763488249240,0.1652958,93181.0,93180.0,0.10864786]
[1763488249645,0.1652958,93181.0,93180.0,0.00126086]
[1763488250453,0.05791,93181.0,93180.0,0.04585086]
[1763488250647,0.3608,93186.0,93185.0,0.1519712]
[1763488251237,0.38276,93186.0,93185.0,0.1519712]
[1763488251651,0.40527,93186.0,93185.0,0.1519712]
[1763488252345,0.38276,93186.0,93185.0,0.1519712]
[1763488252654,0.40527,93186.0,93185.0,0.1519712]
[1763488253045,0.38276,93186.0,93185.0,0.1519712]
[1763488253240,0.02196,93186.0,93185.0,0.1519712]
[1763488253444,0.04447,93186.0,93185.0,0.1519712]
[1763488253854,0.05791,93181.0,93180.0,0.15323786]
[1763488254747,0.05791,93181.0,93180.0,0.00126086]
[1763488255346,0.05791,93181.0,93180.0,0.02319086]
[1763488255554,0.1652958,93181.0,93180.0,0.00016093]
[1763488259555,0.1652958,93181.0,93180.0,0.00126086]
[1763488260148,0.05791,93181.0,93180.0,0.04398086]
[1763488260352,0.3608,93185.0,93184.0,0.1501023]
[1763488261061,0.40692,93185.0,93184.0,0.1501023]
[1763488262655,0.04612,93185.0,93184.0,0.1501023]
[1763488263154,8.086e-05,93190.0,93189.0,0.1500966]
[1763488263360,0.00191163,93190.0,93189.0,0.1500966]
[1763488263564,9e-08,93191.0,93190.0,0.04381993]
[1763488263856,9e-08,93191.0,93190.0,0.40461993]
[1763488264153,0.04612009,93191.0,93190.0,0.40461993]
[1763488264360,9e-08,93191.0,93190.0,0.62177993]
[1763488265154,9e-08,93191.0,93190.0,1.02177993]
[1763488267962,9e-08,93191.0,93190.0,1.14047993]
[1763488268653,0.03639,93236.0,93190.0,1.02177993]
[1763488268855,0.03639,93236.0,93232.0,0.04272]
[1763488268856,0.1073261,93233.0,93232.0,0.04272]
[1763488269053,0.1534461,93233.0,93232.0,0.25988]
[1763488269758,0.04612,93231.0,93230.0,0.00109993]
[1763488269953,0.04612,93224.0,93223.0,0.00016093]
[1763488270155,0.40692,93224.0,93223.0,0.00016093]
[1763488270361,0.40692,93224.0,93223.0,9.3e-07]
[1763488270658,0.1534862,93198.0,93197.0,0.3608]
[1763488271364,0.00183077,93200.0,93199.0,0.04272]
[1763488271566,0.02497077,93200.0,93199.0,0.04272]
[1763488271856,0.04795077,93200.0,93199.0,0.04272]
[1763488272161,0.04612,93195.0,93194.0,0.28136]
[1763488272364,0.02314,93204.0,93203.0,0.1500804]
[1763488272557,0.02330093,93209.0,93208.0,0.1500747]
[1763488272756,0.04628093,93209.0,93208.0,0.1500747]
[1763488272956,0.02330093,93209.0,93208.0,0.1500747]
[1763488273266,0.00016093,93209.0,93208.0,0.1500747]
[1763488274355,0.02330093,93209.0,93208.0,0.1500747]
[1763488274663,0.00016093,93209.0,93208.0,0.1500747]
[1763488275164,0.10751563,93209.0,93206.0,0.1073561]
[1763488275464,0.10751563,93209.0,93197.0,0.3608]
[1763488275465,0.04612,93201.0,93200.0,0.15118303]
[1763488275659,0.04612,93201.0,93200.0,0.41098303]
[1763488276164,0.1534755,93208.0,93207.0,0.02152]
[1763488276364,0.04612,93207.0,93206.0,0.1073568]
[1763488278055,0.00016093,93209.0,93201.0,0.02152]
[1763488278056,0.1534827,93202.0,93201.0,0.02152]
[1763488278266,0.04612,93201.0,93200.0,0.00109993]
[1763488279068,0.1534943,93191.0,93190.0,0.25996093]
[1763488279260,0.1534943,93191.0,93190.0,0.00126086]
[1763488280059,0.1534943,93191.0,93190.0,0.00016093]
[1763488280371,0.04568,93176.0,93175.0,0.1073923]
[1763488280573,0.1518227,93175.0,93174.0,0.2598]
[1763488280779,0.04443,93175.0,93174.0,0.2598]
[1763488280964,0.04343,93175.0,93174.0,0.28115]
[1763488281165,0.02089,93175.0,93174.0,0.30222]
[1763488281963,0.04243,93175.0,93174.0,0.2598]
[1763488282166,0.04243,93175.0,93174.0,0.30222]
[1763488282877,0.1498227,93175.0,93174.0,0.2598]
[1763488283065,0.02189,93171.0,93170.0,0.00109993]
[1763488283267,0.1518273,93171.0,93170.0,0.00109993]
[1763488283673,0.1508273,93171.0,93170.0,0.00109993]
[1763488284267,0.1508273,93171.0,93170.0,0.00209993]
[1763488286279,0.1518319,93167.0,93166.0,0.00026834]
[1763488286969,0.00183077,93170.0,93169.0,0.02135]
[1763488287172,0.04475077,93170.0,93169.0,0.04242]
[1763488287568,0.04475077,93170.0,93169.0,0.02135]
[1763488287772,0.04475077,93170.0,93169.0,0.04235]
[1763488288288,0.05492,93168.0,93167.0,0.1074019]
[1763488289170,0.04222,93167.0,93166.0,0.00026834]
[1763488290280,0.04222,93167.0,93165.0,0.00016093]
[1763488290281,0.1496231,93166.0,93165.0,0.00016093]
[1763488290872,0.04222,93152.0,93151.0,0.69576714]
[1763488291366,0.02119,93152.0,93151.0,0.73822714]
[1763488291675,0.04222,93167.0,93166.0,0.1498631]
[1763488291885,0.00183077,93170.0,93169.0,0.1498596]
[1763488292967,0.1496173,93171.0,93170.0,0.00109993]
[1763488293172,0.04222,93162.0,93161.0,0.62064]
[1763488293373,0.02119,93168.0,93167.0,0.1498619]
[1763488293576,0.02119,93168.0,93161.0,0.7280488]
[1763488293577,0.04222,93162.0,93161.0,0.6421]
[1763488293780,0.00016103,93176.0,93161.0,0.6421]
[1763488293781,0.00016103,93176.0,93175.0,0.1498527]
[1763488293975,0.00016103,93176.0,93175.0,0.5106527]
[1763488294176,0.1496277,93162.0,93157.0,0.00010765]
[1763488294373,0.0127,93168.0,93157.0,0.00010765]
[1763488294374,0.04222,93158.0,93157.0,0.00010765]
[1763488294870,0.00183077,93160.0,93159.0,0.04246]
[1763488295076,0.04405077,93160.0,93159.0,0.04246]
[1763488295275,0.04222,93159.0,93158.0,0.1074123]
[1763488296371,0.00183077,93160.0,93159.0,0.04246]
[1763488296571,0.03389,93168.0,93167.0,0.04246]
[1763488296783,0.02119,93158.0,93157.0,0.14998115]
[1763488296982,0.04222,93158.0,93157.0,0.14998115]
[1763488297186,0.00183077,93160.0,93159.0,0.04246]
[1763488297372,0.1496288,93163.0,93160.0,0.00109993]
[1763488297573,0.04222,93161.0,93160.0,0.02255993]
[1763488297778,0.04222,93161.0,93160.0,0.00109993]
[1763488298979,0.04222,93161.0,93160.0,0.04355993]
[1763488299185,0.05492,93168.0,93167.0,0.1498619]
[1763488300584,0.00183077,93170.0,93169.0,0.04246]
[1763488301177,0.04405077,93170.0,93169.0,0.04246]
[1763488302282,0.04505077,93170.0,93169.0,0.04246]
[1763488303480,0.04505077,93170.0,93167.0,0.1074019]
[1763488303689,0.05492,93168.0,93167.0,0.1074019]
[1763488303874,0.05492,93168.0,93164.0,0.3608]
[1763488303875,0.04222,93165.0,93164.0,0.4896647]
[1763488304287,0.02119,93165.0,93164.0,0.1498647]
[1763488304489,0.1295896,93170.0,93169.0,0.04246]
[1763488304685,0.16515037,93170.0,93169.0,0.04246]
[1763488304888,0.04222,93164.0,93163.0,0.1498655]
[1763488305485,0.04222,93164.0,93163.0,0.02146]
[1763488305786,0.00016103,93176.0,93175.0,0.1498527]
[1763488306484,0.04222,93171.0,93170.0,0.00109993]
[1763488307885,0.04322,93171.0,93170.0,0.00109993]
[1763488308581,0.1496242,93165.0,93164.0,0.1187]
[1763488308890,0.04222,93165.0,93164.0,0.2261054]
[1763488309389,0.04222,93165.0,93164.0,0.2475654]
[1763488309684,0.04222,93165.0,93164.0,0.1498654]
[1763488310682,0.04222,93165.0,93164.0,0.1074054]
[1763488311086,0.04222,93162.0,93161.0,0.1074084]
[1763488311479,0.0127,93168.0,93166.0,0.1074019]
[1763488311684,0.04222,93167.0,93166.0,0.1074019]
[1763488311887,0.04222,93167.0,93166.0,0.1288619]
[1763488312188,0.04222,93167.0,93166.0,0.1498619]
[1763488312389,0.02302077,93170.0,93169.0,0.1498596]
[1763488312586,0.04405077,93170.0,93169.0,0.1498596]
[1763488312790,0.00183077,93170.0,93169.0,0.1498596]
[1763488313291,0.04238103,93176.0,93175.0,0.04246]
[1763488313588,0.00016103,93176.0,93175.0,0.04246]
[1763488314191,0.00016103,93176.0,93175.0,0.40326]
[1763488314895,0.04338103,93176.0,93175.0,0.40326]
[1763488315788,0.04211263,93176.0,93175.0,0.40326]
[1763488315988,0.04211263,93176.0,93175.0,0.04246]
[1763488316586,0.04211263,93176.0,93173.0,0.107395]
[1763488316587,0.1496173,93171.0,93170.0,0.00109993]
[1763488317388,0.04222,93171.0,93170.0,0.02318993]
[1763488317587,0.001,93176.0,93175.0,0.04381]
[1763488317786,0.02429,93176.0,93175.0,0.1512027]
[1763488317987,0.1306799,93178.0,93177.0,0.04381]
[1763488318301,0.1532599,93178.0,93177.0,0.04381]
[1763488318994,0.1306885,93170.0,93169.0,0.30365]
[1763488319189,0.16842927,93170.0,93169.0,0.25984]
[1763488319394,0.16842927,93170.0,93169.0,0.30365]
[1763488319594,0.16842927,93170.0,93169.0,0.25984]
[1763488319993,0.02512077,93170.0,93169.0,0.30365]
[1763488320195,0.00183077,93170.0,93169.0,0.30365]
[1763488320394,0.04770077,93170.0,93169.0,0.30365]
[1763488320692,0.00183077,93170.0,93169.0,0.30365]
[1763488320998,0.06203077,93170.0,93169.0,0.30365]
[1763488321394,0.02612077,93170.0,93169.0,0.30365]
[1763488321886,0.06203077,93170.0,93167.0,0.07704215]
[1763488322092,0.04587,93166.0,93165.0,0.2598]
[1763488322394,0.04587,93166.0,93165.0,0.30361]
[1763488322593,0.001,93170.0,93169.0,0.1512096]
[1763488322797,3e-08,93180.0,93179.0,0.1511981]
[1763488322984,0.03599,93203.0,93202.0,0.1511716]
[1763488323295,0.03599,93203.0,93187.0,0.1073784]
[1763488323296,0.04587,93201.0,93200.0,0.00109993]
[1763488323594,0.04587,93201.0,93200.0,0.13055383]
[1763488323894,0.04613822,93206.0,93205.0,0.04381]
[1763488324085,0.04613822,93206.0,93205.0,0.03308]
[1763488324289,0.04587,93201.0,93200.0,0.00109993]
[1763488324490,0.04687,93201.0,93200.0,0.00109993]
[1763488324683,0.1665731,93192.0,93191.0,0.00016094]
[1763488324888,0.5273731,93192.0,93191.0,0.00016094]
[1763488325386,0.5273731,93192.0,93191.0,0.02225094]
[1763488325597,0.5273731,93192.0,93191.0,0.00016094]
[1763488325890,0.0592,93192.0,93191.0,0.00016094]
[1763488326096,0.1665731,93192.0,93191.0,0.38305094]
[1763488326395,0.1665731,93192.0,93191.0,0.04397094]
[1763488326798,0.1665731,93192.0,93191.0,0.40477094]
[1763488326799,0.02329,93192.0,93191.0,0.40477094]
[1763488326992,0.107364,93200.0,93191.0,0.36096094]
[1763488327193,0.00183077,93200.0,93199.0,0.151175]
[1763488328289,0.00283077,93200.0,93199.0,0.511975]
[1763488329087,0.04870077,93200.0,93199.0,0.04381]
[1763488329294,0.04870077,93200.0,93199.0,0.28185]
[1763488329488,0.04870077,93200.0,93199.0,0.25976]
[1763488329692,0.1665731,93192.0,93191.0,0.00016094]
[1763488330088,0.107395,93173.0,93172.0,0.40461]
[1763488330398,0.107395,93173.0,93172.0,0.66437]
[1763488330796,0.107395,93174.0,93173.0,0.02209]
[1763488330997,0.04587,93173.0,93172.0,0.25976]
[1763488331293,0.40667,93173.0,93172.0,0.25976]
[1763488331493,0.1532742,93165.0,93164.0,0.00016094]
[1763488331692,0.1532904,93151.0,93150.0,0.62056]
[1763488331889,0.04587,93151.0,93150.0,0.62165993]
[1763488332195,0.3608,93165.0,93164.0,0.04381]
[1763488332391,0.38409,93165.0,93164.0,0.04381]
[1763488332591,0.3608,93165.0,93164.0,0.04381]
[1763488332806,0.3608,93183.0,93173.0,0.02209]
[1763488332807,0.00016103,93174.0,93173.0,0.02209]
[1763488332997,0.04603103,93174.0,93173.0,0.02209]
[1763488333395,0.04603103,93174.0,93173.0,0.04381]
[1763488333606,0.0592,93171.0,93170.0,0.00109993]
[1763488334897,0.0592,93171.0,93170.0,0.04490993]
[1763488335292,0.0592,93171.0,93170.0,0.00109993]
[1763488335492,0.0592,93171.0,93170.0,0.15230843]
[1763488335694,0.03662,93171.0,93170.0,0.15230843]
[1763488336298,0.00016103,93174.0,93173.0,0.151205]
[1763488336498,0.00016103,93174.0,93173.0,0.411005]
[1763488337706,0.04603103,93174.0,93173.0,0.30361]
[1763488337907,0.0733187,93174.0,93173.0,0.30361]
[1763488338210,0.4341193,93174.0,93173.0,0.2598]
[1763488339010,0.0274493,93174.0,93173.0,1.132605]
[1763488339199,0.00016103,93174.0,93173.0,1.132605]
[1763488339906,0.0592,93192.0,93191.0,0.1073743]
[1763488340108,0.08648674,93192.0,93191.0,0.1511843]
[1763488341105,0.04622,93183.0,93182.0,0.00016103]
[1763488341314,0.1679235,93192.0,93191.0,0.1073743]
[1763488341512,0.06467643,93192.0,93191.0,0.1520543]
[1763488341903,0.05134643,93192.0,93191.0,0.1520543]
[1763488342307,0.02819643,93192.0,93191.0,0.1520543]
[1763488342507,0.001,93192.0,93191.0,0.1520543]
[1763488342706,0.00043388,93192.0,93191.0,0.1520543]
[1763488343198,0.00016103,93201.0,93200.0,0.1520439]
[1763488343401,0.00016103,93201.0,93200.0,0.77370383]
[1763488344598,0.00116103,93201.0,93200.0,0.77370383]
[1763488344804,0.00116103,93201.0,93200.0,0.66633993]
[1763488347915,0.02431103,93201.0,93200.0,0.66633993]
[1763488348116,0.00116103,93201.0,93200.0,0.66633993]
[1763488353103,0.1073357,93225.0,93217.0,0.04234]
[1763488353307,0.1073311,93229.0,93217.0,0.4094043]
[1763488353516,0.1073423,93219.0,93217.0,0.4094043]
[1763488353913,0.1073423,93219.0,93217.0,0.30206]
[1763488354110,0.1073535,93209.0,93208.0,0.04250094]
[1763488354316,0.1287035,93209.0,93208.0,0.04250094]
[1763488354507,0.1515735,93209.0,93208.0,0.28101094]
[1763488354819,0.1515735,93209.0,93208.0,0.25984094]
[1763488356213,0.17919024,93209.0,93208.0,0.25984094]
[1763488358109,0.17919024,93209.0,93208.0,0.00016094]
[1763488359617,0.18019024,93209.0,93208.0,0.00016094]
[1763488362516,0.17919024,93209.0,93208.0,0.00016094]
[1763488362820,0.18019024,93209.0,93208.0,0.00016094]
[1763488364420,0.151585,93199.0,93198.0,0.25968]
[1763488364624,0.1073777,93188.0,93187.0,0.16104]
[1763488364915,0.1073777,93188.0,93187.0,0.42072]
[1763488365116,0.04605077,93190.0,93189.0,0.04234]
[1763488365318,0.02318077,93190.0,93189.0,0.04234]
[1763488365514,0.00183077,93190.0,93189.0,0.30202]
[1763488366112,0.10752594,93199.0,93198.0,0.04234]
[1763488366311,0.12887594,93199.0,93198.0,0.04234]
[1763488367217,0.00016094,93199.0,93198.0,0.04234]
[1763488371023,0.10752594,93199.0,93198.0,0.04234]
[1763488371624,0.10752594,93199.0,93198.0,0.30202]
[1763488372526,0.1515897,93195.0,93194.0,0.3608]
[1763488372722,0.1515897,93195.0,93194.0,0.62048]
[1763488372925,0.1515943,93191.0,93190.0,0.04343993]
[1763488373224,0.1287216,93194.0,93193.0,0.04234]
[1763488373532,0.04422,93194.0,93193.0,0.04234]
[1763488373914,0.1515882,93197.0,93196.0,0.04234]
[1763488375422,0.17947089,93197.0,93196.0,0.04234]
[1763488376823,0.1515943,93191.0,93190.0,0.4093949]
[1763488377022,0.1515943,93191.0,93190.0,0.41049483]